lending/lending_fUSD_20240510
["ID","MTS","AMOUNT","RATE_DAILY","PERIOD"]
[326750150,1715303278497,2359.70945069,0.00011701,2]
[326750151,1715303279919,208.30272338,0.00011701,2]
[326750152,1715303279965,1052.26065491,0.00011701,2]
[326750153,1715303281332,3086.33164394,0.00011701,2]
[326750154,1715303282475,521.26427135,0.00011701,2]
[326750155,1715303283205,2183.75134658,0.00011701,2]
[326750156,1715303283785,155.0,0.00011701,2]
[326750157,1715303283912,3280.62102371,0.00011701,2]
[326750158,1715303286060,155.0,0.00011701,2]
[326750159,1715303288928,155.0,0.00011701,2]
[326750160,1715303292269,155.0,0.00011701,2]
[326750161,1715303293908,535.07006962,0.00011701,2]
[326750162,1715303294608,788.48029707,0.00011701,2]
[326750163,1715303295374,4415.7164932,0.00011701,2]
[326750168,1715303431808,-2325.82841742,0.00011707,2]
[326750169,1715303431818,-782.62056695,0.00011708,2]
[326750170,1715303431828,-161.82203175,0.00011709,2]
[326750171,1715303431837,-157.93402431,0.00011817,2]
[326750172,1715303431847,-150.0,0.00011818,2]
[326750173,1715303431857,-150.0,0.00011818,2]
[326750174,1715303431867,-23900.0,0.00011819,2]
[326750175,1715303431876,-250.0,0.00011965,2]
[326750176,1715303431886,-11451.19380022,0.00012,2]
[326750177,1715303431896,-500.0,0.00012025,2]
[326750178,1715303431906,-250.0,0.00012058,2]
[326750179,1715303431915,-388.58,0.00012124,2]
[326750180,1715303431925,-493.33,0.00012134,2]
[326750181,1715303431934,-521.26427135,0.00012217,2]
[326750182,1715303431944,-499.99,0.00012346,2]
[326750183,1715303431954,-954.47236404,0.00012348,2]
[326750184,1715303431964,-1293.92513545,0.00012348,2]
[326750185,1715303431974,-3199.98,0.00012536,2]
[326750186,1715303431984,-571.42,0.00012613,2]
[326750187,1715303431994,-3500.3496962,0.00012645,2]
[326750188,1715303432004,-1561.57283666,0.00012848,2]
[326750189,1715303432014,-18314.06199669,0.00012868,2]
[326750190,1715303432024,-164.27008,0.0001287,2]
[326750191,1715303432035,-423.2297,0.000129,2]
[326750192,1715303432045,-169.20148366,0.000129,2]
[326750193,1715303432055,-2472.5821,0.000129,2]
[326750194,1715303432065,-158.92639082,0.000129,2]
[326750195,1715303432075,-1779.24092115,0.000129,2]
[326750196,1715303432085,-6246.81330035,0.000129,2]
[326750197,1715303432095,-2380.9079,0.000129,2]
[326750198,1715303432105,-3336.1821,0.000129,2]
[326750199,1715303432124,-860.3372,0.000129,2]
[326750200,1715303432133,-613.67274353,0.000129,2]
[326750201,1715303432142,-4449.4355,0.000129,2]
[326750202,1715303432152,-157.75726216,0.000129,2]
[326750203,1715303432164,-1955.0239,0.000129,2]
[326750204,1715303432173,-18060.9574,0.000129,2]
[326750206,1715303432183,-3778.09340906,0.000129,2]
[326750207,1715303432193,-1874.84295752,0.000129,2]
[326750209,1715303432203,-186.84491754,0.000129,2]
[326750211,1715303432213,-2465.3731,0.000129,2]
[326750213,1715303432222,-600.95509622,0.000129,2]
[326750216,1715303432232,-163.8227,0.000129,2]
[326750218,1715303432241,-13578.91122462,0.000129,2]
[326750219,1715303432251,-181.53787439,0.0001299,2]
[326750221,1715303432261,-153.5,0.0001299,2]
[326750222,1715303432270,-1378.90396912,0.00012998,2]
[326750223,1715303432280,-463.19997188,0.00012998,2]
[326750224,1715303432290,-304.32822358,0.00012998,2]
[326750225,1715303432299,-155.0,0.00012998,2]
[326750226,1715303432309,-155.7123052,0.00012998,2]
[326750227,1715303432318,-317.215551,0.00012998,2]
[326750228,1715303432328,-2098.72519057,0.00012998,2]
[326750229,1715303432338,-303.76297278,0.00012998,2]
[326750230,1715303432348,-155.0,0.00012998,2]
[326750231,1715303432357,-155.13080231,0.00012998,2]
[326750232,1715303432367,-217.52545506,0.00012998,2]
[326750233,1715303432376,-155.0,0.00012998,2]
[326750234,1715303432386,-155.0,0.00012998,2]
[326750235,1715303432395,-403.12512422,0.00012998,2]
[326750236,1715303432406,-177.49533164,0.00012998,2]
[326750237,1715303432416,-1243.56007584,0.00012998,2]
[326750238,1715303432426,-1622.59234929,0.00012998,2]
[326750239,1715303432435,-306.95158875,0.00012998,2]
[326750240,1715303432445,-273.34533967,0.00012998,2]
[326750241,1715303432455,-233.6301,0.00012998,2]
[326750242,1715303432464,-157.28503511,0.00012998,2]
[326750243,1715303432474,-2360.59457438,0.00012998,2]
[326750244,1715303432483,-343.40545627,0.00012998,2]
[326750245,1715303432493,-376.88612591,0.00012998,2]
[326750246,1715303432502,-370.11421563,0.00012998,2]
[326750247,1715303432512,-167.41961117,0.00012998,2]
[326750248,1715303432521,-4270.46641923,0.00012998,2]
[326750249,1715303432532,-324.87671152,0.00012998,2]
[326750250,1715303432541,-2356.01150949,0.00012998,2]
[326750251,1715303432550,-208.18590438,0.00012998,2]
[326750252,1715303432559,-1051.85863021,0.00012998,2]
[326750253,1715303432568,-2178.74743069,0.00012998,2]
[326750254,1715303432578,-3080.72157884,0.00012998,2]
[326750255,1715303432587,-158.09420269,0.00012998,2]
[326750256,1715303432596,-2220.90448575,0.00012998,2]
[326750257,1715303432606,-259.32312542,0.00012998,2]
[326750258,1715303432615,-165.379977,0.00012998,2]
[326750259,1715303432624,-155.7056271,0.00012998,2]
[326750260,1715303432634,-4425.80531536,0.00012998,2]
[326750261,1715303432643,-534.842708,0.00012998,2]
[326750262,1715303432652,-825.34144565,0.00012998,2]
[326750263,1715303432662,-1037.98964315,0.00012999,3]
[326750264,1715303432671,-1037.98964315,0.00012999,3]
[326750265,1715303432680,-16236.47062073,0.00013,2]
[326750266,1715303432693,-61206.5463406,0.00013,2]
[326750267,1715303432704,-4321.14263448,0.00013,2]
[326750268,1715303432717,-385.01912969,0.00013,2]
[326750269,1715303432728,-462.3687692,0.00013,2]
[326750270,1715303432739,-17692.68091269,0.00013,2]
[326750271,1715303432761,-7140.50711314,0.00013,2]
[326750272,1715303432772,-625.3983,0.00013,2]
[326750273,1715303432784,-614.7279758,0.00013,2]
[326750274,1715303432795,-428.101543,0.00013,2]
[326750275,1715303432807,-52366.10599794,0.00013,2]
[326750276,1715303432818,-1372.00002,0.00013,2]
[326750277,1715303432830,-60092.82223061,0.00013,2]
[326750278,1715303432846,-332943.38549904,0.00013,2]
[326750279,1715303432857,-404.50318885,0.00013,2]
[326750280,1715303432869,-658.25,0.00013,2]
[326750281,1715303432901,-300.0,0.00013,2]
[326750282,1715303432913,-460.43123519,0.00013,2]
[326750283,1715303432924,-29932.26525213,0.00013,2]
[326750284,1715303432935,-2492.08908691,0.00013,2]
[326750285,1715303432946,-623.46,0.00013,2]
[326750298,1715303438027,-237.19563844,0.00011706,2]
[326750299,1715303438037,-157.93402431,0.00011706,2]
[326750300,1715303438046,-1604.87033725,0.00012768,2]
[326750307,1715303438524,-1968.90586275,0.00012768,2]
[326750308,1715303438535,-23270.91877725,0.00013,2]
[326750309,1715303438546,-40188.70718728,0.00013,2]
[326750310,1715303438587,-1015.1703867,0.00013,2]
[326750311,1715303438599,-2084.0327375,0.00013,2]
[326750312,1715303438611,-2007.98320904,0.00013,2]
[326750313,1715303438625,-2586.70432895,0.00013,2]
[326750314,1715303438636,-6446.8404,0.00013,2]
[326750338,1715303440055,-706.70000108,0.00013,2]
[326750339,1715303440067,-286.313,0.00013,2]
[326750340,1715303440078,-681.81144951,0.00013,2]
[326750341,1715303440090,-442.43830717,0.00013,2]
[326750342,1715303440101,-383.99214473,0.00013,2]
[326750343,1715303440113,-7703.13096419,0.00013,2]
[326750344,1715303440224,-738.62076455,0.00013,2]
[326750345,1715303440237,-1538.7074705,0.00013,2]
[326750346,1715303440326,-443.43736833,0.00013,2]
[326750347,1715303440413,-15228.66257192,0.00013,2]
[326750349,1715303441796,-2640.10736042,0.00013,2]
[326750359,1715303443109,-551.20264806,0.00013,2]
[326750360,1715303443127,-1245.4,0.00013,2]
[326750361,1715303443139,-771.14716632,0.00013,2]
[326750362,1715303443183,-225438.5823138,0.00013,2]
[326750363,1715303443251,-885.55258049,0.00013,2]
[326750364,1715303443273,-3.39003212,0.00013,2]
[326750365,1715303443284,-4162.56256622,0.00013,2]
[326750366,1715303443362,-3317.71818416,0.00013,2]
[326750367,1715303443373,-302.28771429,0.00013,2]
[326750368,1715303443387,-3779.61037205,0.00013,2]
[326750383,1715303446003,-1243.56007584,0.00012999,2]
[326750384,1715303446013,-1052.05964256,0.00012999,2]
[326750385,1715303446022,-4271.31667855,0.00012999,2]
[326750386,1715303446031,-781.16802992,0.00012999,2]
[326750387,1715303446041,-2312.85469598,0.00012999,2]
[326750388,1715303446050,-5384.0408773,0.00013,2]
[326750389,1715303446061,-12598.60000001,0.00013,2]
[326750390,1715303446072,-349.5000005,0.00013,2]
[326750391,1715303446178,-392.67559406,0.00013,2]
[326750392,1715303446250,-4632.205704,0.00013,2]
[326750393,1715303446263,-63469.62013322,0.00013,2]
[326750394,1715303614983,164.64,0.0001167,2]
[326750395,1715303710140,190.49,0.0001167,2]
[326750398,1715304213300,173.32783501,0.0001167,2]
[326750399,1715304225288,159.28217203,0.0001167,2]
[326750401,1715304476912,431.76,0.00011631,2]
[326750402,1715304583228,200.69504957,0.00011701,2]
[326750403,1715304584396,250.0,0.00011629,2]
[326750404,1715304586537,872.88018453,0.00011701,2]
[326750405,1715304591129,23900.0,0.00011629,2]
[326750406,1715304596597,157.93402431,0.00011701,2]
[326750407,1715304603473,521.26427135,0.00011701,2]
[326750408,1715304606043,524.99904865,0.00011701,2]
[326750409,1715304620240,1060.48700061,0.00011701,2]
[326750410,1715304623917,1052.37266573,0.00011701,2]
[326750411,1715304625272,2101.80773139,0.00011701,2]
[326750412,1715304631031,176.15985539,0.000117,2]
[326750413,1715304632183,-1064.01999944,0.00011701,2]
[326750415,1715304632194,-564.00393569,0.00011701,2]
[326750418,1715304632206,-3749.66154191,0.00011701,2]
[326750419,1715304632218,-8542.89999,0.00011701,2]
[326750420,1715304632501,-3571.05552313,0.00011701,2]
[326750421,1715304632513,-364.18813852,0.00011701,2]
[326750422,1715304632524,-1087.10900317,0.00011701,2]
[326750423,1715304632537,-4124.89055274,0.00011701,2]
[326750424,1715304632549,-1214.93835696,0.00011701,2]
[326750425,1715304632562,-1474.09241909,0.00011701,2]
[326750426,1715304632573,-664.03948097,0.00011701,2]
[326750427,1715304632584,-2135.35601859,0.00011701,2]
[326750428,1715304632596,-3002.23633276,0.00011701,2]
[326750429,1715304632609,-1665.86276307,0.00011701,2]
[326750430,1715304632619,-4591.42341058,0.00011702,2]
[326750431,1715304632628,-3055.92980354,0.00011702,2]
[326750432,1715304632640,-1359.78668966,0.00011702,2]
[326750433,1715304632650,-155.0,0.00011703,2]
[326750434,1715304632659,-199.77078741,0.00011703,2]
[326750435,1715304632668,-501.48854446,0.00011703,2]
[326750436,1715304632680,-153.21199863,0.00011703,2]
[326750437,1715304632691,-212.57744272,0.00011703,2]
[326750438,1715304632700,-1925.5105588,0.00011703,2]
[326750439,1715304632712,-147.93235681,0.00011703,2]
[326750440,1715304632722,-157.96855427,0.00011704,2]
[326750441,1715304632732,-500.0,0.00011708,2]
[326750442,1715304632741,-156.57166806,0.00011953,2]
[326750446,1715304632876,161.84254659,0.000117,2]
[326750464,1715304638517,-1725.95050033,0.00011953,2]
[326750466,1715304638526,-250.0,0.0001197,2]
[326750467,1715304638535,-150.99,0.0001197,2]
[326750468,1715304638546,-1620.89474429,0.00012055,2]
[326750469,1715304638558,-358.33485164,0.00012055,2]
[326750470,1715304638570,-573.2828905,0.00012055,2]
[326750471,1715304638580,-25633.61751357,0.00012055,2]
[326750472,1715304638590,-510.31,0.00012062,2]
[326750473,1715304638599,-1243.56007584,0.00012162,2]
[326750474,1715304638609,-232.23,0.00012174,2]
[326750475,1715304638618,-4271.31667855,0.00012295,2]
[326750476,1715304638628,-1378.90396912,0.00012295,2]
[326750477,1715304638637,-950.50837319,0.00012348,2]
[326750478,1715304638647,-2500.0,0.00012799,2]
[326750479,1715304638656,-682.7591,0.000128,2]
[326750480,1715304638665,-19018.07470748,0.00012868,2]
[326750481,1715304638674,-180.78,0.00012888,2]
[326750482,1715304638683,-150.0,0.00012897,2]
[326750483,1715304638694,-4422.581,0.00012898,2]
[326750484,1715304638703,-499.99,0.00012898,2]
[326750485,1715304638712,-7599.0813,0.00012899,2]
[326750486,1715304638721,-56084.8483,0.00012899,2]
[326750487,1715304638731,-81134.9898,0.000129,2]
[326750488,1715304638740,-166.07740901,0.000129,2]
[326750489,1715304638749,-157.82459022,0.000129,2]
[326750490,1715304638758,-621.4745263,0.000129,2]
[326750491,1715304638767,-5726.24552533,0.000129,2]
[326750492,1715304638776,-178.17374343,0.000129,2]
[326750493,1715304638785,-171.11349026,0.0001299,2]
[326750494,1715304638794,-171.11349026,0.0001299,2]
[326750495,1715304638804,-227.92794385,0.00012998,2]
[326750496,1715304638814,-1298.55521524,0.00012998,2]
[326750497,1715304638823,-317.215551,0.00012998,2]
[326750498,1715304638832,-155.0,0.00012998,2]
[326750499,1715304638841,-262.28941017,0.00012998,2]
[326750500,1715304638850,-202.99962626,0.00012998,2]
[326750501,1715304638860,-326.15457562,0.00012998,2]
[326750502,1715304638869,-321.17612737,0.00012998,2]
[326750503,1715304638879,-305.45205436,0.00012998,2]
[326750504,1715304638889,-236.79484968,0.00012999,2]
[326750505,1715304638898,-177.64257205,0.00012999,2]
[326750506,1715304638907,-713.41535922,0.00012999,2]
[326750507,1715304638916,-1000.0,0.00012999,2]
[326750508,1715304638925,-1051741.87516838,0.00013,2]
[326750519,1715304640561,-652.20074213,0.00012054,2]
[326750520,1715304641257,-617.42097586,0.00012054,2]
[326750521,1715304641750,-680.51216495,0.00012054,2]
[326750522,1715304641765,-495.28604812,0.00012054,2]
[326750523,1715304641778,-2126.65632733,0.00012054,2]
[326750524,1715304641790,-688.15196471,0.00012054,2]
[326750525,1715304641803,-1163.68068873,0.00012054,2]
[326750526,1715304642100,-959.199,0.00012054,2]
[326750527,1715304642825,-728.18634855,0.00012054,2]
[326750529,1715304643095,-3342.44717715,0.00012054,2]
[326750531,1715304643105,-521.4734453,0.00012897,2]
[326750534,1715304643115,-1053.89653929,0.00012899,2]
[326750537,1715304643124,-2308.13472652,0.00013,2]
[326750539,1715304643135,-786.47443074,0.00013,2]
[326750541,1715304643147,-339.25813426,0.00013,2]
[326750543,1715304643159,-631.33700009,0.00013,2]
[326750544,1715304643169,-345.59999998,0.00013,2]
[326750545,1715304643180,-389.72999925,0.00013,2]
[326750546,1715304643191,-505.53116172,0.00013,2]
[326750563,1715304643650,-691.87033952,0.00013,2]
[326750564,1715304643664,-7786.92172431,0.00013,2]
[326750565,1715304643675,-2882.0,0.00013,2]
[326750566,1715304643687,-489.23716,0.00013,2]
[326750567,1715304643698,-736.37395775,0.00013,2]
[326750568,1715304643709,-582.270009,0.00013,2]
[326750569,1715304643720,-4540.0,0.00013,2]
[326750570,1715304643731,-1066.32182804,0.00013,2]
[326750571,1715304643744,-631954.42594333,0.00013,2]
[326750573,1715304644024,-402.7715441,0.000129,2]
[326750575,1715304644034,-148493.04048787,0.00013,2]
[326750577,1715304644045,-732.3,0.00013,2]
[326750579,1715304644056,-326.83476334,0.00013,2]
[326750596,1715304646311,-2529.28536512,0.000129,2]
[326750597,1715304646322,-468.19587455,0.00013,2]
[326750598,1715304646467,-1515.48982,0.00013,2]
[326750599,1715304646479,-321.89999999,0.00013,2]
[326750600,1715304646491,-16231.02761,0.00013,2]
[326750601,1715304646505,-6257.56595031,0.00013,2]
[326750602,1715304646515,-359.00939672,0.00013,2]
[326750603,1715304646528,-2699.80418807,0.00013,2]
[326750604,1715304646543,-8280.005795,0.00013,2]
[326750605,1715304646555,-736.0,0.00013,2]
[326750606,1715304646568,-29485.04690252,0.00013,2]
[326750607,1715304646582,-662.41649019,0.00013,2]
[326750608,1715304646592,-519.67328745,0.00013,2]
[326750609,1715304646796,-160.68201713,0.00012999,2]
[326750610,1715304646806,-1096.57798287,0.00013,2]
[326750611,1715304646817,-125646.30004921,0.00013,2]
[326750612,1715304646830,-303.43762056,0.00013,2]
[326750613,1715304646841,-693.38000075,0.00013,2]
[326750615,1715304762512,162.04,0.0001164,3]
[326750618,1715305123055,67247.54203257,0.0001164,2]
[326750620,1715305654724,-521.4734453,0.00012197,2]
[326750621,1715305654751,-23900.0,0.00012198,2]
[326750622,1715305654779,-250.0,0.00012198,2]
[326750624,1715305704772,169.113172,0.00012197,2]
[326750630,1715305833367,-485.88175586,0.0001227,2]
[326750631,1715305833380,-2450.0,0.0001227,2]
[326750636,1715305833587,-942.89298596,0.0001227,2]
[326750689,1715305838512,-3498.48600278,0.0001227,2]
[326750690,1715305838524,-2096.51421531,0.0001227,2]
[326750691,1715305838536,-6776.50707923,0.0001227,2]
[326750692,1715305838546,-250.0,0.00012271,2]
[326750693,1715305838555,-287.16,0.0001228,2]
[326750694,1715305838564,-657.14,0.00012302,2]
[326750695,1715305838574,-155.69,0.00012313,2]
[326750696,1715305838584,-408.24,0.00012322,2]
[326750697,1715305838593,-9.88518758,0.00012462,2]
[326750698,1715305838673,-175.68481242,0.00012462,2]
[326750700,1715305838682,-176.15985539,0.00012692,2]
[326750701,1715305838692,-157.96855427,0.00012693,2]
[326750702,1715305838702,-150.0,0.00012767,2]
[326750703,1715305838711,-374.7427,0.00012799,2]
[326750704,1715305838722,-796.1794,0.00012799,2]
[326750705,1715305838731,-178.16385,0.0001287,2]
[326750706,1715305838740,-150.0,0.00012899,2]
[326750707,1715305838750,-150.0,0.00012899,2]
[326750708,1715305838759,-141.05233199,0.00012899,2]
[326750710,1715305840600,-358.93766801,0.00012899,2]
[326750711,1715305840610,-244.2275,0.000129,2]
[326750712,1715305840619,-1910.71474515,0.000129,2]
[326750716,1715305842616,-1560.24472605,0.000129,2]
[326750717,1715305842629,-527.08696612,0.000129,2]
[326750718,1715305842642,-618.39431662,0.000129,2]
[326750719,1715305842654,-594.5763747,0.000129,2]
[326750720,1715305842664,-183.243466,0.000129,2]
[326750721,1715305842673,-2194.41415948,0.000129,2]
[326750722,1715305842683,-191.52050368,0.000129,2]
[326750723,1715305842692,-179.99640246,0.000129,2]
[326750724,1715305842702,-158.60980225,0.00012924,2]
[326750725,1715305842711,-4596.9012807,0.00012987,2]
[326750726,1715305842720,-308.81248779,0.00012997,5]
[326750727,1715305842730,-286.12761006,0.00012997,2]
[326750728,1715305842741,-765.9320325,0.00012997,2]
[326750729,1715305842752,-5030.5865141,0.00012997,2]
[326750730,1715305842763,-3150.70024813,0.00012997,2]
[326750731,1715305842777,-8943.78386462,0.00012997,2]
[326750732,1715305842790,-9077.54866152,0.00012997,2]
[326750733,1715305842802,-8943.84023489,0.00012997,2]
[326750754,1715305843664,-2267.5,0.00012997,2]
[326750755,1715305843675,-39401.21213034,0.00012997,2]
[326750756,1715305843685,-4203.17410344,0.00012998,2]
[326750757,1715305843694,-155.20419513,0.00012998,2]
[326750758,1715305843703,-1245.91356041,0.00012998,2]
[326750759,1715305843712,-357.3446781,0.00012998,2]
[326750760,1715305843721,-3766.64112603,0.00012999,2]
[326750761,1715305843733,-826.25901472,0.00012999,2]
[326750762,1715305843852,-623.25,0.00012999,2]
[326750763,1715305843865,-434.4604038,0.00012999,2]
[326750765,1715305846328,-272.69910537,0.00012999,2]
[326750769,1715305846345,-627.36546595,0.00012999,2]
[326750790,1715305846550,-535.41257548,0.00012999,2]
[326750791,1715305846562,-497.75,0.00012999,2]
[326750792,1715305846574,-1303.58494265,0.00012999,2]
[326750793,1715305846585,-322.9200001,0.00012999,2]
[326750813,1715305846795,-382.28943785,0.00012999,2]
[326750814,1715305846807,-1132.18180268,0.00012999,2]
[326750815,1715305846822,-530.6,0.00012999,2]
[326750838,1715306547161,309.4133827,0.00011698,2]
[326750839,1715306547182,445.71411459,0.00011698,2]
[326750840,1715306627647,410.17378243,0.00011698,2]
[326750841,1715306645621,409.89541822,0.00011698,2]
[326750844,1715306690559,6313.50291998,0.00011698,2]
[326750929,1715307038881,-435.4275,0.00012011,2]
[326750930,1715307038892,-104.88063384,0.00012011,2]
[326750931,1715307038901,-176.15985539,0.00012011,2]
[326750932,1715307038911,-515.14,0.00012012,2]
[326750934,1715307038929,-250.0,0.00012065,2]
[326750935,1715307038941,-733.37,0.00012152,2]
[326750936,1715307038951,-535.00931275,0.00012407,2]
[326750937,1715307038962,-155.15618797,0.00012409,2]
[326750938,1715307038972,-539.67252472,0.00012508,2]
[326750939,1715307038982,-189.49,0.0001254,2]
[326750940,1715307038993,-3502.08126514,0.00012658,2]
[326750941,1715307039003,-1973.62742336,0.00012671,2]
[326750942,1715307039062,-1820.11727664,0.00012671,2]
[326750943,1715307039072,-150.99,0.00012687,2]
[326750944,1715307039082,-150.0,0.00012699,2]
[326750945,1715307039092,-150.0,0.00012699,2]
[326750946,1715307039102,-406.26226548,0.00012786,2]
[326750947,1715307039112,-292.62281205,0.00012869,2]
[326750948,1715307039123,-500.0,0.00012894,2]
[326750949,1715307039134,-500.0,0.00012895,2]
[326750950,1715307039146,-500.0,0.00012895,2]
[326750951,1715307039156,-5041.50764583,0.000129,2]
[326750952,1715307039169,-241.40529886,0.000129,2]
[326750953,1715307039181,-167.12270322,0.000129,2]
[326750954,1715307039191,-45.10733792,0.000129,2]
[326750956,1715307041794,-405.36356208,0.000129,2]
[326750957,1715307041804,-149.13485494,0.000129,2]
[326750958,1715307041817,-9.47494731,0.000129,2]
[326750959,1715307041826,-256.6165,0.000129,2]
[326750960,1715307041837,-155.15618796,0.000129,2]
[326750961,1715307041847,-187.76736471,0.000129,2]
[326750962,1715307041860,-2461.17673529,0.000129,2]
[326750963,1715307041870,-200.47128644,0.000129,2]
[326750964,1715307041880,-339.27722003,0.000129,2]
[326750977,1715307043957,-345.78263788,0.000129,2]
[326750978,1715307043966,-317.77715591,0.000129,2]
[326750979,1715307043976,-1336.44020621,0.000129,2]
[326750980,1715307043987,-2137.57121287,0.000129,2]
[326750981,1715307043996,-9825.38288489,0.00012997,2]
[326750982,1715307044007,-460.07091854,0.00012997,2]
[326750983,1715307044020,-2306.6388282,0.00012997,2]
[326750984,1715307044032,-805.43476892,0.00012997,2]
[326750985,1715307044498,-661.66608519,0.00012997,2]
[326751014,1715307046567,-1397.37329969,0.00012997,2]
[326751018,1715307046937,-10744.82434177,0.00012997,2]
[326751020,1715307046946,-1836.1653076,0.00012997,2]
[326751021,1715307046955,-976.69722994,0.00012997,2]
[326751022,1715307046966,-284.47014169,0.00012997,2]
[326751023,1715307046976,-2108.65524066,0.00012997,2]
[326751024,1715307051131,683.32093934,0.00011698,2]
[326751025,1715307052595,71877.4021413,0.00011698,2]
[326751026,1715307072569,30362.09456962,0.00011698,2]
[326751027,1715307205759,500.0,0.00011603,2]
[326751028,1715307206192,500.0,0.00011604,2]
[326751031,1715307813158,-639.99536802,0.00011905,2]
[326751032,1715307813179,-262.78286527,0.00012003,2]
[326751033,1715307813200,-528.24751457,0.00012004,2]
[326751034,1715307813221,-568.97425214,0.00012005,2]
[326751035,1715307815096,-674.94553083,0.00012005,2]
[326751036,1715307815115,-321.07842002,0.00012005,2]
[326751037,1715307815134,-150.0,0.00012217,2]
[326751038,1715307815155,-190.08,0.00012217,2]
[326751039,1715307815174,-663.89604915,0.00012247,2]
[326751040,1715307816559,-2000.0,0.00012247,2]
[326751048,1715308231886,-626.71201654,0.00012243,2]
[326751049,1715308231897,-346.48303694,0.00012243,2]
[326751050,1715308231909,-270.72472949,0.00012243,2]
[326751051,1715308231919,-148.17744515,0.00012247,2]
[326751052,1715308231930,-781.95019923,0.00012247,2]
[326751053,1715308231941,-1806.00192747,0.00012247,2]
[326751054,1715308231951,-827.13712285,0.00012247,2]
[326751055,1715308231962,-667.36237526,0.00012247,2]
[326751056,1715308231974,-259.86200001,0.00012247,2]
[326751057,1715308231985,-357.4799971,0.00012247,2]
[326751058,1715308231996,-6370.88873846,0.00012247,2]
[326751059,1715308232007,-7966.72183934,0.00012247,2]
[326751060,1715308232019,-2050.52230598,0.00012247,2]
[326751061,1715308232028,-155.69,0.00012292,2]
[326751062,1715308232038,-526.59,0.00012335,2]
[326751063,1715308232047,-189.58,0.00012423,2]
[326751064,1715308232056,-174.59,0.00012433,2]
[326751065,1715308232065,-250.0,0.00012511,2]
[326751066,1715308232074,-586.69,0.00012558,2]
[326751067,1715308232083,-2456.99803313,0.00012608,2]
[326751068,1715308232092,-3321.29889828,0.00012868,2]
[326751069,1715308232101,-234.09824964,0.00012869,2]
[326751070,1715308232110,-4842.6701994,0.000129,2]
[326751071,1715308232119,-165.11469394,0.000129,2]
[326751072,1715308232128,-158.10249215,0.000129,2]
[326751073,1715308232137,-2316.00761272,0.000129,2]
[326751074,1715308232145,-456.70657194,0.000129,2]
[326751075,1715308232154,-182.038433,0.000129,2]
[326751076,1715308232164,-1595.79487124,0.000129,2]
[326751077,1715308232172,-56391.862396,0.00012995,2]
[326751078,1715308232181,-178.16385,0.00012997,2]
[326751079,1715308232190,-189.61661566,0.00012998,2]
[326751080,1715308232199,-1168.82842553,0.00012998,2]
[326751081,1715308232208,-371.44069281,0.00012998,2]
[326751082,1715308232217,-226.57835895,0.00012998,2]
[326751083,1715308232225,-155.0,0.00012998,2]
[326751084,1715308232234,-266.72326719,0.00012998,2]
[326751085,1715308232243,-715.37868707,0.00012998,2]
[326751086,1715308232253,-282.08286811,0.00012998,2]
[326751087,1715308232262,-159.21483198,0.00012998,2]
[326751088,1715308232271,-263.52186691,0.00012998,2]
[326751089,1715308232280,-384.92185238,0.00012998,2]
[326751090,1715308232289,-16760.99401019,0.00012998,2]
[326751091,1715308232298,-183.86922456,0.00012998,2]
[326751092,1715308232307,-21550.55036452,0.00012999,2]
[326751093,1715308232316,-1665.55227998,0.00012999,2]
[326751094,1715308232325,-5861.29139766,0.00012999,2]
[326751095,1715308232334,-207.77106734,0.00012999,2]
[326751096,1715308232343,-590.0,0.00013,2]
[326751097,1715308232352,-217895.44655573,0.00013,2]
[326751098,1715308232364,-33812.71672177,0.00013,2]
[326751099,1715308232375,-896.99068152,0.00013,2]
[326751100,1715308232435,-205645.78859138,0.00013,2]
[326751101,1715308232446,-179265.84175603,0.00013,2]
[326751102,1715308232462,-15764.62598836,0.00013,2]
[326751103,1715308232473,-544.0998858,0.00013,2]
[326751132,1715308238511,-528.24751457,0.00012242,2]
[326751133,1715308238520,-170.42745763,0.0001299,2]